fUSD/lending_fUSD_20250216
["ID","MTS","AMOUNT","RATE_DAILY","PERIOD"]
[353299164,1739742681378,-684.81,0.00011616,2]
[353299165,1739742681388,-500.0,0.00011616,2]
[353299166,1739742681397,-500.0,0.00011616,2]
[353299167,1739742681408,-500.0,0.00011616,2]
[353299168,1739742681418,-948.86,0.00011616,2]
[353299169,1739742681427,-500.0,0.00011616,2]
[353299170,1739742681436,-500.0,0.00011616,2]
[353299171,1739742681445,-1205.36,0.00011616,2]
[353299172,1739742681455,-500.0,0.00011616,2]
[353299173,1739742681465,-2644.03,0.00011616,2]
[353299174,1739742681474,-845.2,0.00011616,2]
[353299175,1739742681485,-500.0,0.00011616,2]
[353299176,1739742681494,-1299.48,0.00011616,2]
[353299177,1739742681503,-500.0,0.00011616,2]
[353299178,1739742681513,-2569.33,0.00011616,2]
[353299179,1739742681523,-500.0,0.00011616,2]
[353299180,1739742681533,-500.0,0.00011616,2]
[353299181,1739742681543,-1215.7,0.00011616,2]
[353299182,1739742681553,-500.0,0.00011616,2]
[353299183,1739742681563,-500.0,0.00011616,2]
[353299184,1739742681574,-597.66,0.00011616,2]
[353299185,1739742681583,-500.0,0.00011616,2]
[353299186,1739742681593,-188.214849,0.00011616,2]
[353299187,1739742681603,-500.0,0.00011616,2]
[353299188,1739742681613,-500.0,0.00011616,2]
[353299189,1739742681623,-500.0,0.00011616,2]
[353299190,1739742681633,-2101.67,0.00011616,2]
[353299191,1739742681643,-664.4,0.00011616,2]
[353299192,1739742681654,-1077.31,0.00011616,2]
[353299193,1739742681664,-500.0,0.00011616,2]
[353299194,1739742681673,-500.0,0.00011616,2]
[353299195,1739742681683,-935.69,0.00011616,2]
[353299196,1739742681692,-190.803093,0.00011616,2]
[353299197,1739742681702,-661.83,0.00011616,2]
[353299198,1739742681712,-1106.58,0.00011616,2]
[353299199,1739742681722,-500.0,0.00011616,2]
[353299200,1739742681732,-1835.67,0.00011616,2]
[353299201,1739742681742,-2255.62,0.00011616,2]
[353299202,1739742681752,-730.5,0.00011616,2]
[353299203,1739742681762,-500.0,0.00011616,2]
[353299204,1739742681772,-770.15,0.00011616,2]
[353299205,1739742681782,-1638.39,0.00011616,2]
[353299206,1739742681793,-601.23114684,0.00011616,2]
[353299207,1739742681804,-578.74,0.00011616,2]
[353299208,1739742681813,-1003.64,0.00011616,2]
[353299209,1739742681823,-500.0,0.00011616,2]
[353299210,1739742681833,-500.0,0.00011616,2]
[353299211,1739742681844,-1650.35,0.00011616,2]
[353299212,1739742681854,-791.01,0.00011616,2]
[353299213,1739742681863,-1438.47,0.00011616,2]
[353299214,1739742681873,-424.17,0.00011616,2]
[353299215,1739742681882,-500.0,0.00011616,2]
[353299216,1739742681893,-500.0,0.00011616,2]
[353299217,1739742681904,-500.0,0.00011616,2]
[353299218,1739742681915,-430.90396022,0.00011616,2]
[353299219,1739742681925,-1575.58,0.00011616,2]
[353299220,1739742681936,-1536.64,0.00011616,2]
[353299221,1739742681946,-687.89,0.00011616,2]
[353299222,1739742681959,-441.69937438,0.00011616,2]
[353299223,1739742681969,-1036.62,0.00011616,2]
[353299224,1739742681978,-810.05,0.00011616,2]
[353299225,1739742681988,-500.0,0.00011616,2]
[353299226,1739742681998,-1605.64,0.00011616,2]
[353299227,1739742682008,-640.51,0.00011616,2]
[353299228,1739742682018,-500.0,0.00011616,2]
[353299229,1739742682029,-1465.61,0.00011616,2]
[353299230,1739742682039,-500.0,0.00011616,2]
[353299231,1739742682049,-500.0,0.00011616,2]
[353299232,1739742682058,-1869.66,0.00011616,2]
[353299233,1739742682068,-500.0,0.00011616,2]
[353299234,1739742682078,-2363.97,0.00011616,2]
[353299235,1739742682088,-946.33,0.00011616,2]
[353299236,1739742682102,-898.03,0.00011616,2]
[353299237,1739742682112,-500.0,0.00011616,2]
[353299238,1739742682122,-500.0,0.00011616,2]
[353299239,1739742682132,-790.18,0.00011616,2]
[353299240,1739742682143,-5281.57,0.00011616,2]
[353299241,1739742682153,-500.0,0.00011616,2]
[353299242,1739742682163,-1497.17,0.00011616,2]
[353299243,1739742682173,-500.0,0.00011616,2]
[353299244,1739742682185,-955.64,0.00011616,2]
[353299245,1739742682195,-1351.49,0.00011616,2]
[353299246,1739742682204,-1462.67,0.00011616,2]
[353299247,1739742682214,-522.19,0.00011616,2]
[353299248,1739742682223,-500.0,0.00011616,2]
[353299249,1739742682233,-1393.39,0.00011616,2]
[353299250,1739742682243,-918.71,0.00011616,2]
[353299251,1739742682253,-1445.68,0.00011616,2]
[353299252,1739742682264,-500.0,0.00011616,2]
[353299253,1739742682274,-500.0,0.00011616,2]
[353299254,1739742682283,-1262.94,0.00011616,2]
[353299255,1739742682293,-1096.78,0.00011616,2]
[353299256,1739742682302,-866.87,0.00011616,2]
[353299257,1739742682311,-921.5,0.00011616,2]
[353299258,1739742682321,-500.0,0.00011616,2]
[353299259,1739742682331,-500.0,0.00011616,2]
[353299260,1739742682341,-1703.44,0.00011616,2]
[353299261,1739742682351,-817.33,0.00011616,2]
[353299262,1739742682362,-1765.29,0.00011616,2]
[353299263,1739742682372,-563.98,0.00011616,2]
[353299264,1739742682382,-500.0,0.00011616,2]
[353299265,1739742682392,-1077.46,0.00011616,2]
[353299266,1739742682402,-500.0,0.00011616,2]
[353299267,1739742682412,-797.83,0.00011616,2]
[353299268,1739742682422,-2045.9,0.00011616,2]
[353299269,1739742682432,-500.0,0.00011616,2]
[353299270,1739742682442,-1027.79,0.00011616,2]
[353299271,1739742682451,-562.48,0.00011616,2]
[353299272,1739742682462,-919.02,0.00011616,2]
[353299273,1739742682471,-2070.46,0.00011616,2]
[353299274,1739742682481,-500.0,0.00011616,2]
[353299275,1739742682491,-512.74088686,0.00011616,2]
[353299276,1739742682500,-1269.5,0.00011616,2]
[353299277,1739742682509,-1764.9,0.00011616,2]
[353299278,1739742682520,-1920.38,0.00011616,2]
[353299279,1739742682529,-594.15,0.00011616,2]
[353299280,1739742682539,-1514.45,0.00011616,2]
[353299281,1739742682549,-3942.71,0.00011616,2]
[353299282,1739742682558,-500.0,0.00011616,2]
[353299283,1739742682568,-500.0,0.00011616,2]
[353299284,1739742682578,-582.06,0.00011616,2]
[353299285,1739742682587,-500.0,0.00011616,2]
[353299286,1739742682597,-518.38,0.00011616,2]
[353299287,1739742682606,-2006.59,0.00011616,2]
[353299288,1739742682616,-500.0,0.00011616,2]
[353299289,1739742682626,-739.81,0.00011616,2]
[353299290,1739742682636,-500.0,0.00011616,2]
[353299291,1739742682646,-1277.56,0.00011616,2]
[353299292,1739742682655,-659.07,0.00011616,2]
[353299293,1739742682665,-676.16,0.00011616,2]
[353299294,1739742682675,-500.0,0.00011616,2]
[353299295,1739742682687,-616.55,0.00011616,2]
[353299296,1739742682696,-500.0,0.00011616,2]
[353299297,1739742682705,-500.0,0.00011616,2]
[353299298,1739742682715,-662.98,0.00011616,2]
[353299299,1739742682725,-681.63,0.00011616,2]
[353299300,1739742682735,-500.0,0.00011616,2]
[353299301,1739742682744,-1928.42,0.00011616,2]
[353299302,1739742682754,-768.53,0.00011616,2]
[353299303,1739742682764,-1472.35,0.00011616,2]
[353299304,1739742682774,-500.0,0.00011616,2]
[353299305,1739742682784,-500.0,0.00011616,2]
[353299306,1739742682794,-1085.08,0.00011616,2]
[353299307,1739742682804,-1097.37,0.00011616,2]
[353299308,1739742682814,-1532.75,0.00011616,2]
[353299309,1739742682824,-1575.69,0.00011616,2]
[353299310,1739742682834,-800.35,0.00011616,2]
[353299311,1739742682844,-2696.32,0.00011616,2]
[353299312,1739742682854,-1998.61,0.00011616,2]
[353299313,1739742682864,-601.4,0.00011616,2]
[353299314,1739742682874,-846.39,0.00011616,2]
[353299315,1739742682884,-1249.29,0.00011616,2]
[353299316,1739742682893,-500.0,0.00011616,2]
[353299317,1739742682903,-500.0,0.00011616,2]
[353299318,1739742682912,-1062.89,0.00011616,2]
[353299319,1739742683087,-500.0,0.00011616,2]
[353299320,1739742683100,-500.0,0.00011616,2]
[353299321,1739742683111,-2010.66,0.00011616,2]
[353299322,1739742683121,-1292.55,0.00011616,2]
[353299323,1739742683131,-500.0,0.00011616,2]
[353299324,1739742683140,-1786.66,0.00011616,2]
[353299325,1739742683151,-718.28,0.00011616,2]
[353299326,1739742683160,-500.0,0.00011616,2]
[353299327,1739742683170,-500.0,0.00011616,2]
[353299328,1739742683181,-505.9,0.00011616,2]
[353299329,1739742683191,-500.0,0.00011616,2]
[353299330,1739742683200,-2309.43,0.00011616,2]
[353299331,1739742683210,-841.82,0.00011616,2]
[353299332,1739742683219,-1004.9,0.00011616,2]
[353299333,1739742683229,-1051.25,0.00011616,2]
[353299334,1739742683238,-538.64297832,0.00011616,2]
[353299335,1739742683248,-1465.9,0.00011616,2]
[353299336,1739742683258,-1681.66,0.00011616,2]
[353299337,1739742683268,-365.19245336,0.00011616,2]
[353299338,1739742683912,-500.0,0.00010958,2]
[353299339,1739742683922,-500.0,0.00010958,2]
[353299340,1739742683932,-500.0,0.00010958,2]
[353299341,1739742683942,-500.0,0.00011041,2]
[353299342,1739742683952,-500.0,0.00011041,2]
[353299343,1739742683962,-500.0,0.00011123,2]
[353299344,1739742683972,-500.0,0.00011123,2]
[353299345,1739742683982,-500.0,0.00011123,2]
[353299346,1739742683992,-500.0,0.00011205,2]
[353299347,1739742684002,-500.0,0.00011287,2]
[353299348,1739742684013,-216.97,0.00011369,2]
[353299349,1739742684023,-775.76,0.00011507,2]
[353299350,1739742684033,-134.80754664,0.00011616,2]
[353299351,1739742684044,-918.07,0.00011616,2]
[353299352,1739742684054,-500.0,0.00011616,2]
[353299353,1739742684064,-1609.77,0.00011616,2]
[353299354,1739742684073,-500.0,0.00011616,2]
[353299355,1739742684083,-1735.61,0.00011616,2]
[353299356,1739742684093,-500.0,0.00011616,2]
[353299357,1739742684107,-500.0,0.00011616,2]
[353299358,1739742684116,-2197.25,0.00011616,2]
[353299359,1739742684126,-500.0,0.00011616,2]
[353299360,1739742684135,-500.0,0.00011616,2]
[353299361,1739742684146,-795.13,0.00011616,2]
[353299362,1739742684156,-513.81,0.00011616,2]
[353299363,1739742684166,-685.8,0.00011616,2]
[353299364,1739742684176,-1539.81,0.00011616,2]
[353299365,1739742684187,-500.0,0.00011616,2]
[353299366,1739742684197,-4849.07,0.00011616,2]
[353299367,1739742684206,-500.0,0.00011616,2]
[353299368,1739742684216,-822.2123404,0.0001168,2]
[353299369,1739742684227,-1017.77578108,0.0001168,2]
[353299370,1739742684238,-1471.49,0.00011697,2]
[353299371,1739742684247,-922.85,0.00011697,2]
[353299372,1739742684258,-1666.95,0.00011697,2]
[353299373,1739742684267,-500.0,0.00011697,2]
[353299374,1739742684277,-1208.65,0.00011697,2]
[353299375,1739742684288,-1605.62,0.00011697,2]
[353299376,1739742684298,-2077.86,0.00011697,2]
[353299377,1739742684308,-1142.3,0.00011697,2]
[353299378,1739742684318,-1876.41,0.00011697,2]
[353299379,1739742684328,-553.47,0.00011697,2]
[353299380,1739742684339,-1626.88,0.00011697,2]
[353299381,1739742684349,-1146.64,0.00011697,2]
[353299382,1739742684359,-300.0,0.00011697,2]
[353299383,1739742684369,-680.62728129,0.00011697,2]
[353299384,1739742684379,-500.0,0.00011698,2]
[353299385,1739742684389,-500.0,0.00011698,2]
[353299386,1739742684398,-500.0,0.00011698,2]
[353299387,1739742684408,-500.0,0.00011698,2]
[353299388,1739742684419,-500.0,0.00011698,2]
[353299389,1739742684428,-500.0,0.00011698,2]
[353299390,1739742684438,-500.0,0.00011698,2]
[353299391,1739742684448,-625.94199639,0.00011698,2]
[353299392,1739742684458,-500.0,0.00011698,2]
[353299393,1739742684467,-500.0,0.00011698,2]
[353299394,1739742684478,-500.0,0.00011698,2]
[353299395,1739742684487,-500.0,0.00011698,2]
[353299396,1739742684497,-500.0,0.00011698,2]
[353299397,1739742684507,-500.0,0.00011698,2]
[353299398,1739742684517,-500.0,0.00011698,2]
[353299399,1739742684526,-500.0,0.00011698,2]
[353299400,1739742684535,-200.3,0.00011698,2]
[353299401,1739742684545,-500.0,0.00011698,2]
[353299402,1739742684554,-500.0,0.00011698,2]
[353299403,1739742684564,-442.82,0.00011698,2]
[353299404,1739742684573,-247.02,0.00011698,2]
[353299405,1739742684583,-500.0,0.00011698,2]
[353299406,1739742684592,-500.0,0.00011698,2]
[353299407,1739742684602,-500.0,0.00011698,2]
[353299408,1739742684611,-588.54,0.00011698,2]
[353299409,1739742684621,-500.0,0.00011698,2]
[353299410,1739742684631,-600.0,0.00011698,2]
[353299411,1739742684641,-500.0,0.00011698,2]
[353299412,1739742684650,-500.0,0.00011698,2]
[353299413,1739742684659,-773.53,0.00011698,2]
[353299414,1739742684669,-500.0,0.00011698,2]
[353299415,1739742684680,-629.01,0.00011698,2]
[353299416,1739742684690,-500.0,0.00011698,2]
[353299417,1739742684700,-500.0,0.00011698,2]
[353299418,1739742684709,-545.39,0.00011698,2]
[353299419,1739742684719,-581.66,0.00011698,2]
[353299420,1739742684729,-500.0,0.00011698,2]
[353299421,1739742684738,-525.55,0.00011698,2]
[353299422,1739742684747,-309.68633269,0.00011698,2]
[353299423,1739742684757,-500.0,0.00011698,2]
[353299424,1739742684767,-388.44,0.00011698,2]
[353299425,1739742684778,-804.84,0.00011698,2]
[353299426,1739742684788,-982.12,0.00011698,2]
[353299427,1739742684798,-500.0,0.00011698,2]
[353299428,1739742684807,-500.0,0.00011698,2]
[353299429,1739742684817,-500.0,0.00011698,2]
[353299430,1739742684826,-169.94,0.00011698,2]
[353299431,1739742684836,-500.0,0.00011698,2]
[353299432,1739742684846,-500.0,0.00011698,2]
[353299433,1739742684856,-500.0,0.00011698,2]
[353299434,1739742684866,-565.07,0.00011698,2]
[353299435,1739742684877,-500.0,0.00011698,2]
[353299436,1739742684886,-1208.65,0.00011698,2]
[353299437,1739742684895,-605.6,0.00011698,2]
[353299438,1739742684906,-855.1,0.00011698,2]
[353299439,1739742684917,-597.45,0.00011698,2]
[353299440,1739742684927,-1108.48,0.00011698,2]
[353299441,1739742684938,-570.47,0.00011698,2]
[353299442,1739742684948,-500.0,0.00011698,2]
[353299443,1739742684959,-500.0,0.00011698,2]
[353299444,1739742684969,-1106.27,0.00011698,2]
[353299445,1739742684979,-500.0,0.00011698,2]
[353299446,1739742684989,-500.0,0.00011698,2]
[353299447,1739742685000,-877.71,0.00011698,2]
[353299448,1739742685010,-500.0,0.00011698,2]
[353299449,1739742685021,-726.09,0.00011698,2]
[353299450,1739742685031,-500.0,0.00011698,2]
[353299451,1739742685041,-541.85,0.00011698,2]
[353299452,1739742685051,-500.0,0.00011698,2]
[353299453,1739742685061,-1071.49,0.00011698,2]
[353299454,1739742685072,-500.0,0.00011698,2]
[353299455,1739742685081,-749.73,0.00011698,2]
[353299456,1739742685092,-726.53,0.00011698,2]
[353299457,1739742685105,-500.0,0.00011698,2]
[353299458,1739742685114,-767.54,0.00011698,2]
[353299459,1739742685123,-387.97,0.00011698,2]
[353299460,1739742685133,-684.820222,0.00011698,2]
[353299461,1739742685143,-580.47,0.00011698,2]
[353299462,1739742685154,-587.22,0.00011698,2]
[353299463,1739742685163,-500.0,0.00011698,2]
[353299464,1739742685173,-500.0,0.00011698,2]
[353299465,1739742685183,-500.0,0.00011698,2]
[353299466,1739742685192,-987.579306,0.00011698,2]
[353299467,1739742685202,-500.0,0.00011698,2]
[353299468,1739742685212,-152.74,0.00011698,2]
[353299469,1739742685222,-500.0,0.00011698,2]
[353299470,1739742685231,-500.0,0.00011698,2]
[353299471,1739742685241,-532.63,0.00011698,2]
[353299472,1739742685251,-518.7,0.00011698,2]
[353299473,1739742685261,-500.0,0.00011698,2]
[353299474,1739742685270,-508.32,0.00011698,2]
[353299475,1739742685281,-500.0,0.00011698,2]
[353299476,1739742685290,-500.0,0.00011698,2]
[353299477,1739742685300,-1320.12,0.00011698,2]
[353299478,1739742685310,-500.0,0.00011698,2]
[353299479,1739742685319,-500.0,0.00011698,2]
[353299480,1739742685329,-610.47,0.00011698,2]
[353299481,1739742685338,-500.0,0.00011698,2]
[353299482,1739742685347,-603.88,0.00011698,2]
[353299483,1739742685357,-930.63,0.00011698,2]
[353299484,1739742685367,-836.2,0.00011698,2]
[353299485,1739742685376,-500.0,0.00011698,2]
[353299486,1739742685385,-500.0,0.00011698,2]
[353299487,1739742685394,-712.78,0.00011698,2]
[353299488,1739742685404,-500.0,0.00011698,2]
[353299489,1739742685414,-500.0,0.00011698,2]
[353299490,1739742685423,-500.0,0.00011698,2]
[353299491,1739742685433,-500.0,0.00011698,2]
[353299492,1739742685443,-999.98,0.00011698,2]
[353299493,1739742685452,-843.76,0.00011698,2]
[353299494,1739742685461,-500.0,0.00011698,2]
[353299495,1739742685470,-863.25,0.00011698,2]
[353299496,1739742685480,-1040.19,0.00011698,2]
[353299497,1739742685489,-306.9377985,0.00011698,2]
[353299498,1739742685498,-841.54,0.00011698,2]
[353299499,1739742685508,-500.0,0.00011698,2]
[353299500,1739742685517,-500.0,0.00011698,2]
[353299501,1739742685527,-565.47,0.00011698,2]
[353299502,1739742685536,-854.5,0.00011698,2]
[353299503,1739742685545,-500.0,0.00011698,2]
[353299504,1739742685554,-462.6,0.00011698,2]
[353299505,1739742685564,-839.28,0.00011698,2]
[353299506,1739742685573,-500.0,0.00011698,2]
[353299507,1739742685582,-500.0,0.00011698,2]
[353299508,1739742685592,-500.0,0.00011698,2]
[353299509,1739742685602,-1102.11,0.00011698,2]
[353299510,1739742685611,-625.90945963,0.00011698,2]
[353299511,1739742685620,-500.0,0.00011698,2]
[353299512,1739742685629,-1120.48,0.00011698,2]
[353299513,1739742685638,-666.2,0.00011698,2]
[353299514,1739742685647,-509.74,0.00011698,2]
[353299515,1739742685656,-500.0,0.00011698,2]
[353299516,1739742685831,-701.22,0.00011698,2]
[353299517,1739742685842,-500.0,0.00011698,2]
[353299518,1739742685852,-506.62,0.00011698,2]
[353299519,1739742685862,-500.0,0.00011698,2]
[353299520,1739742685871,-500.0,0.00011698,2]
[353299521,1739742685881,-500.0,0.00011698,2]
[353299522,1739742685891,-500.0,0.00011698,2]
[353299523,1739742685900,-523.46,0.00011698,2]
[353299524,1739742685909,-730.12,0.00011698,2]
[353299525,1739742685919,-500.0,0.00011698,2]
[353299526,1739742685928,-500.0,0.00011698,2]
[353299527,1739742685937,-500.0,0.00011698,2]
[353299528,1739742685946,-691.18,0.00011698,2]
[353299529,1739742685956,-959.53,0.00011698,2]
[353299530,1739742685964,-500.0,0.00011698,2]
[353299531,1739742685974,-1279.74,0.00011698,2]
[353299532,1739742685983,-500.0,0.00011698,2]
[353299533,1739742685993,-320.29577109,0.00011698,2]
[353299534,1739742686002,-1064.34,0.00011698,2]
[353299535,1739742686011,-684.81,0.00011698,2]
[353299536,1739742686020,-500.0,0.00011698,2]
[353299537,1739742686030,-500.0,0.00011698,2]
[353299538,1739742686039,-948.86,0.00011698,2]
[353299539,1739742686048,-500.0,0.00011698,2]
[353299540,1739742686057,-500.0,0.00011698,2]
[353299541,1739742686066,-1205.36,0.00011698,2]
[353299542,1739742686075,-500.0,0.00011698,2]
[353299543,1739742686085,-845.2,0.00011698,2]
[353299544,1739742686094,-500.0,0.00011698,2]
[353299545,1739742686108,-1299.48,0.00011698,2]
[353299546,1739742686117,-500.0,0.00011698,2]
[353299547,1739742686127,-2569.33,0.00011698,2]
[353299548,1739742686135,-500.0,0.00011698,2]
[353299549,1739742686146,-500.0,0.00011698,2]
[353299550,1739742686156,-1215.7,0.00011698,2]
[353299551,1739742686166,-500.0,0.00011698,2]
[353299552,1739742686177,-597.66,0.00011698,2]
[353299553,1739742686187,-429.59406692,0.00011698,2]
[353299554,1739742686197,-500.0,0.00011698,2]
[353299555,1739742686206,-500.0,0.00011698,2]
[353299556,1739742686216,-500.0,0.00011698,2]
[353299557,1739742686226,-2101.67,0.00011698,2]
[353299558,1739742686235,-664.4,0.00011698,2]
[353299559,1739742686245,-1077.31,0.00011698,2]
[353299560,1739742686256,-500.0,0.00011698,2]
[353299561,1739742686265,-500.0,0.00011698,2]
[353299562,1739742686274,-935.69,0.00011698,2]
[353299563,1739742686284,-661.83,0.00011698,2]
[353299564,1739742686294,-1106.58,0.00011698,2]
[353299565,1739742686304,-500.0,0.00011698,2]
[353299566,1739742686313,-1835.67,0.00011698,2]
[353299567,1739742686322,-2255.62,0.00011698,2]
[353299568,1739742686333,-730.5,0.00011698,2]
[353299569,1739742686342,-500.0,0.00011698,2]
[353299570,1739742686353,-770.15,0.00011698,2]
[353299571,1739742686363,-1638.39,0.00011698,2]
[353299572,1739742686373,-578.74,0.00011698,2]
[353299573,1739742686383,-1003.64,0.00011698,2]
[353299574,1739742686392,-500.0,0.00011698,2]
[353299575,1739742686402,-393.41486495,0.00011698,2]
[353299576,1739742686412,-1650.35,0.00011698,2]
[353299577,1739742686421,-791.01,0.00011698,2]
[353299578,1739742686432,-1438.47,0.00011698,2]
[353299579,1739742686441,-500.0,0.00011698,2]
[353299580,1739742686451,-500.0,0.00011698,2]
[353299581,1739742686460,-500.0,0.00011698,2]
[353299582,1739742686470,-1575.58,0.00011698,2]
[353299583,1739742686479,-1536.64,0.00011698,2]
[353299584,1739742686489,-687.89,0.00011698,2]
[353299585,1739742686498,-1036.62,0.00011698,2]
[353299586,1739742686508,-810.05,0.00011698,2]
[353299587,1739742686517,-500.0,0.00011698,2]
[353299588,1739742686527,-316.84821693,0.00011698,2]
[353299589,1739742686551,-500.0,0.00011041,2]
[353299590,1739742686561,-19.20021124,0.00011698,2]
[353299591,1739742686573,-1269.59157183,0.00011698,2]
[353299592,1739742686583,-500.0,0.00011698,2]
[353299593,1739742686593,-1465.61,0.00011698,2]
[353299594,1739742686603,-189.91712076,0.00011698,2]
[353299595,1739742686613,-500.0,0.00011698,2]
[353299596,1739742686623,-1869.66,0.00011698,2]
[353299597,1739742686632,-500.0,0.00011698,2]
[353299598,1739742686642,-1178.86493566,0.00011698,2]
[353299599,1739742686665,-407.11,0.00011205,2]
[353299600,1739742686675,-1185.10506434,0.00011698,2]
[353299601,1739742686684,-946.33,0.00011698,2]
[353299602,1739742686694,-898.03,0.00011698,2]
[353299603,1739742686703,-500.0,0.00011698,2]
[353299604,1739742686712,-500.0,0.00011698,2]
[353299605,1739742686722,-790.18,0.00011698,2]
[353299606,1739742686731,-4268.59884375,0.00011698,2]
[353299607,1739742686743,-533.59496,0.00011698,2]
[353299608,1739742686754,-479.37619625,0.00011698,2]
[353299609,1739742686764,-500.0,0.00011698,2]
[353299610,1739742686774,-1497.17,0.00011698,2]
[353299611,1739742686783,-500.0,0.00011698,2]
[353299612,1739742686792,-955.64,0.00011698,2]
[353299613,1739742686803,-1351.49,0.00011698,2]
[353299614,1739742686812,-1462.67,0.00011698,2]
[353299615,1739742686822,-522.19,0.00011698,2]
[353299616,1739742686831,-481.85309466,0.00011698,2]
[353299617,1739742686841,-1393.39,0.00011698,2]
[353299618,1739742686851,-918.71,0.00011698,2]
[353299619,1739742686862,-1445.68,0.00011698,2]
[353299620,1739742686872,-500.0,0.00011698,2]
[353299621,1739742686882,-500.0,0.00011698,2]
[353299622,1739742686892,-1262.94,0.00011698,2]
[353299623,1739742686901,-1096.78,0.00011698,2]
[353299624,1739742686911,-866.87,0.00011698,2]
[353299625,1739742686921,-179.28,0.00011698,2]
[353299626,1739742686930,-921.5,0.00011698,2]
[353299627,1739742686939,-500.0,0.00011698,2]
[353299628,1739742686949,-1502.64088557,0.00011698,2]
[353299629,1739742686962,-200.79911443,0.00011698,2]
[353299630,1739742686972,-137.01015557,0.00011698,2]
[353299631,1739742686991,-497.57463508,0.00011698,2]
[353299632,1739742687006,-182.74520935,0.00011698,2]
[353299633,1739742687016,-1765.29,0.00011698,2]
[353299634,1739742687025,-563.98,0.00011698,2]
[353299635,1739742687035,-500.0,0.00011698,2]
[353299636,1739742687044,-17.0890451,0.00011698,2]
[353299637,1739742687057,-384.50318454,0.00011698,2]
[353299638,1739742687069,-675.86777036,0.00011698,2]
[353299639,1739742687079,-797.83,0.00011698,2]
[353299640,1739742687089,-500.0,0.00011698,2]
[353299641,1739742687102,-2045.9,0.00011698,2]
[353299642,1739742687112,-500.0,0.00011698,2]
[353299643,1739742687121,-1027.79,0.00011698,2]
[353299644,1739742687130,-562.48,0.00011698,2]
[353299645,1739742687140,-919.02,0.00011698,2]
[353299646,1739742687151,-2070.46,0.00011698,2]
[353299647,1739742687160,-500.0,0.00011698,2]
[353299648,1739742687169,-1269.5,0.00011698,2]
[353299649,1739742687179,-1764.9,0.00011698,2]
[353299650,1739742687190,-1920.38,0.00011698,2]
[353299651,1739742687201,-594.15,0.00011698,2]
[353299652,1739742687211,-1514.45,0.00011698,2]
[353299653,1739742687220,-3942.71,0.00011698,2]
[353299654,1739742687229,-500.0,0.00011698,2]
[353299655,1739742687240,-500.0,0.00011698,2]
[353299656,1739742687250,-500.0,0.00011698,2]
[353299657,1739742687259,-518.38,0.00011698,2]
[353299658,1739742687269,-1916.95604685,0.00011698,2]
[353299659,1739742687282,-89.63395315,0.00011698,2]
[353299660,1739742687291,-500.0,0.00011698,2]
[353299661,1739742687301,-739.81,0.00011698,2]
[353299662,1739742687311,-500.0,0.00011698,2]
[353299663,1739742687320,-1277.56,0.00011698,2]